Cogmind - Beta 17 @@@ ROGUE MODE // 2026.07.31 @ 18:47:44 Player: LanceLander Result: Destroyed by QP-TUV(R) with Subdweller Shrapnel Launcher Performance ------------- Evolutions (0) 0 Regions Visited (2) 400 Robots Destroyed (13) 65 Value Destroyed (369) 369 Prototype IDs (14) 280 Alien Tech Used (0) 0 Bonus (-52) -52 TOTAL SCORE: 1062 Bonus ------- Friendly Fire -52 Cogmind --------- Core Integrity 0/250 Matter 208/300 Energy 180/180 System Corruption 0% Temperature Cool (0) Movement Rolling (115) Ox1 Location -10/Subcaves Parts ------- > --- POWER (1) -------- Meta Core > --- PROPULSION (2+1) - Compact Wheel Compact Wheel > --- UTILITY (2+1) ---- Large Storage Unit (+) Scrap Shield > --- WEAPON (2+1) ----- Battle Cannon Flamer > --- INVENTORY (15) --- Wheel Subdweller Monowheel Disposable Heat Sink Small Storage Unit Improved Terrain Scanner Self-contained Transmogrifier EM Pulse Gun Assault Rifle Subdweller Machine Gun Peak State ------------ > --- POWER ------------ Meta Core > --- PROPULSION ------- Compact Wheel Compact Wheel > --- UTILITY ---------- Large Storage Unit Improved Terrain Scanner > --- WEAPON ----------- Battle Cannon Flamer > --- INVENTORY -------- Light Ion Engine Subdweller Power Source Compact Wheel Subdweller Monowheel Disposable Heat Sink Small Storage Unit Transport Network Coupler Scrap Shield Self-contained Transmogrifier EM Pulse Gun Assault Rifle Battle Rifle Battle Rifle Subdweller Machine Gun [Rating: 26] Favorites ----------- Power Ion Engine Engine Ion Engine Power Core Meta Core Propulsion Compact Wheel Leg Aluminum Leg Wheel Compact Wheel Utility Improved Terrain Scanner Device Improved Terrain Scanner Storage Large Storage Unit Protection Weapon Shielding Weapon Assault Rifle Energy Gun EM Pulse Gun Ballistic Gun Assault Rifle Ballistic Cannon Battle Cannon Special Weapon Flamer Build | -11 -10 -10 ------- Run | Yrd Mat Sub Slots Evolved . | . . . Power . | . . . Propulsion . | . . . Utility . | . . . Weapon . | . . . Parts Attached 28 | 9 6 13 Power 6 | 2 . 4 Engine 5 | 2 . 3 Core 1 | . . 1 Reactor . | . . . Propulsion 8 | 4 1 3 Treads . | . . . Leg 2 | 2 . . Wheel 6 | 2 1 3 Hover . | . . . Flight . | . . . Utility 5 | 1 2 2 Device 1 | . 1 . Storage 2 | 1 1 . Processor . | . . . Hackware . | . . . Protection 2 | . . 2 Artifact . | . . . Weapon 9 | 2 3 4 Energy Gun 3 | 2 1 . Energy Cannon . | . . . Ballistic Gun 4 | . 2 2 Ballistic Cannon 1 | . . 1 Launcher . | . . . Special Weapon 1 | . . 1 Impact Weapon . | . . . Slashing Weapon . | . . . Piercing Weapon . | . . . Special Melee Weapon . | . . . Unidentified Prototypes . | . . . Parts Lost 4 | . . 4 Power 1 | . . 1 Propulsion 2 | . . 2 Utility . | . . . Weapon 1 | . . 1 Highest Loss Streak 2 | . . 2 To Critical Strikes . | . . . Average Backups 10 | 2 7 12 Power 1 | . 1 2 Propulsion 3 | 1 3 3 Utility 2 | . 1 3 Weapon 2 | . 1 3 Tool/Special . | . . . Unused Backups 5 | . . 5 Power . | . . . Propulsion 1 | . . 1 Utility 2 | . . 2 Weapon 1 | . . 1 Tool/Special 1 | . . 1 Average Slot Usage (%) 90 | . 96 88 Engine 10 | . 14 9 Core 2 | . . 2 Leg 1 | . 4 . Wheel 23 | . 23 23 Device 12 | . 14 12 Storage 13 | . 14 12 Energy Gun 3 | . 5 2 Ballistic Gun 10 | . 19 7 Ballistic Cannon 5 | . . 7 Special Weapon 5 | . . 7 Peak Build Rating 26 | 6 9 26 Average Rating 13 | 4 8 16 On Entrance 5 | . 6 9 Avg Prop Armor Cover (%) 5 | . . 5 Naked Turns . | . . . Heaviest Build 49 | 13 30 49 Greatest Support 36 | 32 26 36 Greatest Overweight (x) 1 | 1 1 1 Average Overweight (x) . | . . . Largest Inventory Capacity 15 | 8 15 15 Average Capacity 14 | 7 13 14 Most Carried 15 | 6 10 15 Average Carried 11 | 3 7 13 Final Capacity 15 | 8 15 15 Final Carried 10 | 6 10 9 Class Distribution -------------------- 100% | Mutant Dominant Class ---------------- Mutant | -10/Materials Mutant | -10/Subcaves Resources | -11 -10 -10 ----------- Run | Yrd Mat Sub Matter Collected 871 | 264 204 403 Remotely . | . . . Salvage Created 576 | 30 270 276 Parts 37 | 3 9 25 Haulers Intercepted 1 | . 1 . Recyclers Shooed 2 | 1 1 . Parts Field Recycled . | . . . Retrieved Matter . | . . . Parts Self-Destructed 7 | . . 7 Prevented . | . . . Parts Restored . | . . . Kills | -11 -10 -10 ------- Run | Yrd Mat Sub Combat Hostiles Destroyed 9 | . 2 7 Guns 8 | . 2 6 Cannons 1 | . . 1 Classes Destroyed 6 | 1 3 2 Tunneler 1 | 1 . . Hauler 1 | . 1 . Recycler 2 | . 2 . Grunt 2 | . 2 . Artisan 1 | . . 1 Subdweller 7 | . . 7 Best Kill Streak 4 | 1 4 2 Combat Bots Only 2 | . 2 2 Max Kills in Single Turn 2 | 1 2 1 Gunslinging . | . . . Exploded . | . . . Melee . | . . . Uniques/NPCs Destroyed . | . . . Combat | -11 -10 -10 -------- Run | Yrd Mat Sub Hostile Shots Fired 59 | . 21 38 Missed 19 | . 8 11 Hits 40 | . 13 27 Projectile 40 | . 13 27 AOE 3 | . . 3 Critical Strikes 1 | . . 1 Damage Taken 850 | . 146 704 Core 260 | . 22 238 Absorbed by Shields . | . . . Redirected to Shielding 12 | . . 12 Core Remaining (%) 100 | 100 . . Volleys Fired 88 | 3 24 61 Largest 2 | 2 2 2 Hottest 133 | 80 40 133 Shots Fired 137 | 6 42 89 Gun 97 | 6 42 49 Cannon 36 | . . 36 Launcher . | . . . Special 4 | . . 4 Kinetic 114 | . 42 72 Thermal 7 | 3 . 4 Explosive . | . . . Electromagnetic 16 | 3 . 13 Robot Hit Streak 19 | 3 3 19 Robot Miss Streak 5 | 2 5 2 Penetration Max . | . . . Secondary Targets 1 | . . 1 Max Gunslinging Chain 1 | . . 1 Shots Hit Robots 64 | 3 19 42 Core Hits 24 | 1 9 14 Critical Kills 1 | . 1 . Critical Parts Destroyed . | . . . Critical Strikes 2 | . 1 1 Destroy 2 | . 1 1 Melee Attacks . | . . . Impact . | . . . Slashing . | . . . Piercing . | . . . Sneak Attacks . | . . . Combat Hostiles . | . . . Follow-up Attacks . | . . . Damage Inflicted 1016 | 39 323 654 Guns 935 | 39 323 573 Cannons 70 | . . 70 Explosions . | . . . Melee . | . . . Ramming . | . . . Kinetic 855 | . 323 532 Thermal 23 | 12 . 11 Explosive . | . . . Electromagnetic 138 | 27 . 111 Impact . | . . . Slashing . | . . . Piercing . | . . . Highest Corruption . | . . . Average Corruption . | . . . Corruption Purged . | . . . Corruption Blocked . | . . . Overload Shots . | . . . Overflow Damage . | . . . Projectiles . | . . . Explosions . | . . . Melee . | . . . Knockbacks . | . . . Impact . | . . . Kinetic . | . . . Secondary . | . . . Self-Inflicted Damage . | . . . Shots . | . . . Rammed . | . . . Targets Rammed . | . . . Kicked . | . . . Crushed . | . . . Highest Temperature 36 | 36 . . Average Temperature 18 | 18 . . Received Heat Transfer 192 | . 78 114 Siege Activations . | . . . Martial Activations . | . . . Shielding Activations . | . . . Robots Disrupted . | . . . Combat Hostiles . | . . . Robots Corrupted . | . . . Combat Hostiles . | . . . Parts Fried . | . . . Impact Corruptions . | . . . Robots Melted . | . . . Combat Hostiles . | . . . Parts Melted . | . . . Heat Transferred 105 | 25 . 80 Parts Sabotaged . | . . . Parts Stolen . | . . . Parts Stripped . | . . . Power Chain Reactions . | . . . Alert | -11 -10 -10 ------- Run | Yrd Mat Sub Maximum Alert Level . | . . . Low Security (%) 100 | 100 100 . Level 1 . | . . . Level 2 . | . . . Level 3 . | . . . Level 4 . | . . . Level 5 . | . . . High Security . | . . . Max Security . | . . . Peak Influence 47 | 5 47 . Initial 3 | . 3 . Average 6 | . 7 . Influence Increases 80 | 5 75 . Destroy 0b10 Robot/C 40 | . 40 . Destroy 0b10 Robot/NC 20 | 5 15 . Destroy Leader 2 | . 2 . Successful Hack 17 | . 17 . Destroy Structure 1 | . 1 . Influence Decreases 80 | . 80 . Entered New Map 2 | . 2 . Time Decay 78 | . 78 . Squads Dispatched . | . . . Investigation . | . . . Extermination . | . . . Reinforcement . | . . . Assault . | . . . Garrison . | . . . Intercept . | . . . Searches Triggered . | . . . Construction Impeded . | . . . Haulers Reinforced . | . . . Active Scanning Responses . | . . . Cargo Convoy Interrupts . | . . . Stealth | -11 -10 -10 --------- Run | Yrd Mat Sub Distress Signals 1 | . 1 . Communications Jammed . | . . . Distress Signals . | . . . Times Spotted 15 | . 7 8 Peak Tracking Total 5 | . 5 2 Tactical Retreats . | . . . Traps | -11 -10 -10 ------- Run | Yrd Mat Sub Traps Triggered 1 | . 1 . Indirectly . | . . . Trap Hack Attempts . | . . . Triggered . | . . . Disarmed . | . . . Reprogrammed . | . . . Reused . | . . . Traps Extracted . | . . . Installed . | . . . Triggered . | . . . Machines | -11 -10 -10 ---------- Run | Yrd Mat Sub Machines Disabled 2 | . 1 1 Max in Single Turn 1 | . 1 1 Machines Repaired . | . . . Machines Dismantled . | . . . Machines Sabotaged . | . . . Overloaded Fab Kills . | . . . Hacking | -11 -10 -10 --------- Run | Yrd Mat Sub Machines Accessed 5 | . 4 1 Terminals 3 | . 3 . Fabricators . | . . . Repair Stations . | . . . Recycling Units 1 | . 1 . Scanalyzers . | . . . Garrison Access . | . . . Total Hacks 9 | . 8 1 Successful 6 | . 5 1 Failed 3 | . 3 . Catastrophic . | . . . Database Lockouts . | . . . Manual 2 | . 2 . Terminals 4 | . 4 . Fabricators . | . . . Repair Stations . | . . . Recycling Units 4 | . 4 . Scanalyzers . | . . . Garrison Access . | . . . Terminal Hacks 3 | . 2 1 Branch Access Points 1 | . 1 . Recycling Unit Index 1 | . 1 . Proto ID Catalog 1 | . . 1 Fabricator Hacks . | . . . Repair Station Hacks . | . . . Recycling Unit Hacks 2 | . 2 . Report Inventory 1 | . 1 . Retrieve Components 1 | . 1 . Scanalyzer . | . . . Garrison Access Hacks . | . . . Unauthorized Hacks 1 | . 1 . Terminals . | . . . Fabricators . | . . . Repair Stations . | . . . Recycling Units 1 | . 1 . Reject 1 | . 1 . Scanalyzers . | . . . Garrison Access . | . . . Data Cores Recovered . | . . . Used . | . . . Hacking Detections 3 | . 3 . Full Trace Events 1 | . 1 . Feedback Events . | . . . Feedback Blocked . | . . . Robot Schematics Acquired . | . . . Robots Built . | . . . Authchips . | . . . Time . | . . . Total Robot Build Rating . | . . . Part Schematics Acquired . | . . . Parts Built . | . . . Authchips . | . . . Time . | . . . Total Part Build Rating . | . . . Part Studies Acquired . | . . . Parts Repaired . | . . . Time . | . . . Parts Recycled . | . . . Recycled Matter . | . . . Retrieved Matter . | . . . Retrieved Components 9 | . 9 . Parts Scanalyzed . | . . . Part Schematics Acquired . | . . . Parts Damaged . | . . . Bothacking | -11 -10 -10 ------------ Run | Yrd Mat Sub Used RIF Installer . | . . . Robots Hacked . | . . . Non-combat . | . . . Combat . | . . . Robot Hacks Applied . | . . . Relay Couplers Released . | . . . Fabnet Peak Effective % . | . . . Robots Rewired . | . . . Allies Hacked . | . . . Hacks Repelled . | . . . Allies | -11 -10 -10 -------- Run | Yrd Mat Sub Total Allies . | . . . Largest Group . | . . . Highest-Rated Group . | . . . Highest-Rated Ally . | . . . Total Orders . | . . . Ally Attacks . | . . . Total Damage . | . . . Kills . | . . . Allies Corrupted . | . . . Allies Melted . | . . . Intel | -11 -10 -10 ------- Run | Yrd Mat Sub Active Infowar (turns) 1692 | . 448 1244 Terrain 1692 | . 448 1244 Robot Analysis Total . | . . . Derelict Logs Recovered 1 | . . 1 Drone Launches . | . . . Drone Recoveries . | . . . Exploration | -11 -10 -10 ------------- Run | Yrd Mat Sub Turns Passed 1855 | 97 448 1310 Spaces Moved 1351 | 58 298 995 Core 1 | 1 . . Treads . | . . . Legs 102 | 49 53 . Wheels 1248 | 8 245 995 Hover . | . . . Flight . | . . . Fastest Speed 50 | 50 105 100 Average Speed 105 | 123 107 104 Slowest Speed 190 | 190 120 115 Overloaded Moves . | . . . Propulsion Burnouts . | . . . Robots Hopped . | . . . Potential Cave-ins . | . . . Cave-ins Triggered . | . . . Exploration Rate (%) 31 | 4 56 34 Regions Visited 2 Branch Regions 1 Pre-discovered Areas 1 | . . 1 Known Exits Taken . | . . . Unknown Exits Taken 2 | 1 1 . Scrap Searched 4 | . . 4 Spaces Dug 2 | . . 2 Terrain Destroyed 2 | . . 2 Melee . | . . . Projectile 2 | . . 2 AOE . | . . . Terrain Rammed . | . . . Walls Destroyed . | . . . Machines Disabled . | . . . Actions | -11 -10 -10 --------- Run | Yrd Mat Sub Total 1628 | 74 381 1173 Wait 116 | . 46 70 Move 1349 | 57 297 995 Hop . | . . . Pick Up 19 | 3 3 13 Fast Attach 20 | 8 3 9 Attach 5 | . 1 4 Detach 7 | 2 2 3 Swap 13 | 1 4 8 Drop 11 | . 1 10 Fire 88 | 3 24 61 Melee . | . . . Ram . | . . . Kick . | . . . Crush . | . . . Escape Stasis . | . . . Rewire . | . . . Trap . | . . . Miscellaneous . | . . . Route ------- -11/Scrapyard -10/Materials (discovered 2 exits: *Min / *Sub) -10/Subcaves (discovered 1 exit: [*Mat]) History --------- Turn | Location | Event 28 | -11/Scrapyard | Discovered new exit (range 16) 98 | -11/Scrapyard | Entered Materials 290 | -10/Materials | Identified exit to Mines 302 | -10/Materials | Build established: Mutant 542 | -10/Materials | Discovered new exit (range 5) 546 | -10/Materials | Entered Subcaves 547 | -10/Subcaves | Approached by a straggling Scientist 547 | -10/Subcaves | Discovered new exit (range 6) 587 | -10/Subcaves | Shifting Twisted Machinery released Sub. Power Source 600 | -10/Subcaves | Learned location of Zion (-7) 600 | -10/Subcaves | Met a Zionite searching for "candidates" 678 | -10/Subcaves | Core integrity fell below 50% 793 | -10/Subcaves | Shifting Twisted Machinery released Battle Rifle 797 | -10/Subcaves | Shifting Twisted Machinery released Sub. Machine Gun 890 | -10/Subcaves | Core integrity fell below 20% 960 | -10/Subcaves | Learned location of 1 exit from Materials 1174 | -10/Subcaves | Ambushed by Subdweller buried in earth 1449 | -10/Subcaves | Visited 4L-MR0's lab 1461 | -10/Subcaves | Found Meta Core 1463 | -10/Subcaves | Attached Meta Core, gained temporary slots: Propulsion, Utility, Weapon 1465 | -10/Subcaves | Found Prototype Device 1553 | -10/Subcaves | A swath of the cavern ceiling suddenly collapsed 1856 | -10/Subcaves | Destroyed by QP-TUV(R) with Subdweller Shrapnel Launcher Last Messages --------------- 01488_ Dropped Transport Network Coupler. 01489_ Acquired Com. Wheel. 01526_ Subatomizers dissect the Sub. Monowheel. 01528_ Acquired 18 matter. A swath of the cavern ceiling suddenly collapses. 01640_ Acquired 29 matter. 01643_ Acquired 33 matter. 01678_ Subatomizers dissect the Corrupted Sub. Optics. 01714_ Subatomizers dissect the Corrupted Sub. Optics, destroying it. 01827_ Acquired 28 matter. 01840_ Dropped Lrg. Storage Unit. 01841_ Dropped Imp. Terrain Scanner. 01842_ Acquired Lrg. Storage Unit. 01845_ Acquired Sub. Monowheel. 01847_ Acquired Imp. Terrain Scanner. 01849_ Acquired Disposable Heat Sink. 01851_ Acquired Sub. Machine Gun. 01853_ Acquired Prototype Device. 01856_ QP-TUV(R): "SUBMAD!" 01856_ Acquired Wheel. Map ----- +----------------------------------------------------+ | ??????????????????# "# #??#?## ##?#?#?##"""#???? | | ???????????????????# "# ?????#" #????##""""###?? | | ?????????????????### #######"#######"""""##??? | | ?????????????????# ## # ""# #" "" ##?#? | | ????????????"" #??? | | ???????????? " # ## # ##"####""" #??? | | ?????????????#### ???##?###########??#""" " #??? | | ????????????????#????#????????????###??#"" ""#??? | | ??????????????????#??#???????#?????????#""" ###??? | | ?????????????????#????###?????????##?#?##" "##??## | | #????????? ? ?#?#???##############??##??#" " #???? | | ??????? ?? ???????#??#* #"""""" "#?#?##?#" ##???? | | ?????????? ????????#?# " "X" ! "#???#??#" ##???? | | ?##?"????? ??#???#???###* *######???#" #???? | | "??#??"? ???????##??#### + "##???# ##?#?? | | ??????#??#???#?#?#?# ###########" ####?# ###?? | | #?#????#??###?#?##??# ####???#### "##?#?## #?? | | #######?##????###???#"|""##### ! "##?#?# #?? | | #!# ##???#???#??#??##" # "#?#??#### ##?? | | ##" ##?##?????###??#""## ##?#????## ##? | | ### ##????##??????#### ##"""##???????# #?# | | #### #??#??##?#?######< <#######???#??## ##?? | | ??# ####?#??#### ## < ### ###??#?# ##?? | | ??## ####### #####?## #?? | | #??# ";;; ## ### ### ##?? | | #### @ R #?# #?## | | #!## ### [= # ### ##?? | | & [ & ### [*# # ## ### #?? | | %= & #### *# ## # #?# #?? | | !=#=# & #?# ### # ### ##? | | ##### """ ##?#### # ##### # #?# | | ## ## ##??#?## # ###??##! ##? | | # #####" ####??#### # #?### # ## #?? | | #??##" " #?#???#??#### #### ######## ##?? | | ??##" ""######????#?#?#?# # # # %#??## ##??? | | #?## " ####?#????#?#?#?# ####### ##??? | | ##?### " #????#???????### # ####### ## #?#? | | ##### " ####??#?##???#?# #### #%# ##?? | | ## """"" "???#??????# ? # ##### ##??# | | "" """"""?#?#?#??## ###???# #??####???? | | """"#""#??????#?# #???? ?# #?????????? | | #""##"""#?????#??# #???????## #?????#?#?? | | #####?#"?"????#???# ??? ?????#####?????#???? | | ##??#????????????# ??????????#???#?#??????? | | " ####??????#?????#???????????????????#?#??? | | ""#?????????????????#?????#???????#?? | | ## #???????????????????????#??????????? | | ##?# ###?????????????????????????????????? | | ## #???# ##???????????????????????????????????? | | ?# ####?####??#??#????#???????????????#?????????? | +----------------------------------------------------+ Best States ------------- Heat Dissipation 25 Energy Generation 17 Energy Capacity 250 Matter Stores 300 Matter Capacity 300 Sight Range 16 Terrain Scan Range 16 Terrain Scan Density 10 Armor Coverage 800 Weapon Shielding 33 Evasion (%) 55 Item Schematics ----------------- None Robot Schematics ------------------ None Fabricated ------------ Nothing Repaired ---------- Nothing Studied --------- None Alien Tech Used ----------------- None Achievements -------------- Do Not Disturb Challenges ------------ None Game ------ Seed ScatterPropulsionLance Manual? 0 Play Time 00:18:12 Cumulative 94.0 hours Start 2026.07.31 @ 18:32:23 End 2026.07.31 @ 18:47:44 Sessions 1 Manual Loads 0 Difficulty Rogue Special Mode None Game No. 55 Rogue 55 Adventurer 0 Explorer 0 Win Type - Total 1 Types 1/0/0/0/0/0/0/0/0/0 Lore% 54 Gallery% 52 Achievement% 42 Wizard Run 0 Options --------- Layout 0 ASCII 0 Keyboard 1 Movement Vi Keybinds 0 Fullscreen 1 Font 24/Smallcaps Map View 76x50 Zoom Use 0% Tactical HUD 1 Map Filters NONE Filters NONE Steam 1 RUN: 30abe6eb-2b03-4ca3-95c7-4df1c8816630